bitfinex/quotes_SOLUSD_20220118
["timestamp","ask_amount","ask_price","bid_price","bid_amount"]
[1642478015129,2.874,139.18,139.1,4.08657085]
[1642478015429,0.26,139.18,139.11,2.874]
[1642478015644,27.6744,139.2,139.11,2.874]
[1642478015831,0.25,139.19,139.11,2.874]
[1642478016030,0.25,139.19,139.12,39.52705289]
[1642478016231,2.874,139.18,139.12,39.52705289]
[1642478016432,2.874,139.18,139.12,39.78705289]
[1642478016831,0.26,139.18,139.12,39.78705289]
[1642478017234,3.384,139.19,139.12,39.52705289]
[1642478017432,0.51,139.19,139.12,39.52705289]
[1642478017932,0.25,139.19,139.13,0.25]
[1642478018136,0.25,139.19,139.12,39.52705289]
[1642478018137,28.92863461,139.2,139.12,39.78705289]
[1642478018637,28.92863461,139.2,139.12,50.56445289]
[1642478018837,28.92863461,139.2,139.13,0.25]
[1642478019135,25.0604,139.2,139.13,0.25]
[1642478019738,2.874,139.21,139.13,11.0265]
[1642478019941,3.86823461,139.22,139.14,2.874]
[1642478020140,3.86823461,139.22,139.15,47.8025457]
[1642478020340,3.86823461,139.22,139.16,2.873]
[1642478020741,3.86823461,139.22,139.17,0.25]
[1642478020940,7.96102545,139.24,139.17,0.25]
[1642478021143,7.96102545,139.24,139.17,23.9828]
[1642478021342,7.96102545,139.24,139.18,47.55515668]
[1642478021543,8.22102545,139.24,139.18,47.55515668]
[1642478021949,25.5673,139.25,139.18,47.55515668]
[1642478022350,0.25,139.24,139.18,47.55515668]
[1642478023171,31.3173,139.25,139.18,47.55515668]
[1642478023371,25.5773,139.25,139.18,47.55515668]
[1642478023774,31.5773,139.25,139.18,47.55515668]
[1642478024575,25.5773,139.25,139.18,47.55515668]
[1642478025377,0.25,139.24,139.18,47.55515668]
[1642478029787,31.5773,139.25,139.18,47.55515668]
[1642478029985,25.5773,139.25,139.18,47.55515668]
[1642478031186,22.9533,139.25,139.19,0.25]
[1642478031486,0.25,139.24,139.18,47.55515668]
[1642478034188,0.25,139.24,139.16,2.873]
[1642478034389,2.873,139.23,139.16,2.873]
[1642478034589,3.123,139.24,139.16,2.873]
[1642478034789,0.26,139.23,139.17,0.25]
[1642478034991,0.26,139.23,139.18,2.873]
[1642478035390,0.25,139.24,139.18,2.873]
[1642478035591,0.25,139.24,139.19,35.35824621]
[1642478036991,17.51673461,139.26,139.19,35.35824621]
[1642478037191,3.86823461,139.26,139.2,3.123]
[1642478037392,3.86823461,139.26,139.2,3.383]
[1642478037693,3.86823461,139.26,139.2,4.69809324]
[1642478037892,3.86823461,139.26,139.2,10.69809324]
[1642478038092,3.86823461,139.29,139.21,71.3]
[1642478038291,3.86823461,139.29,139.23,37.56305611]
[1642478038492,3.86823461,139.29,139.24,2.872]
[1642478038694,3.86823461,139.29,139.24,3.122]
[1642478038892,3.86823461,139.29,139.24,3.382]
[1642478039093,3.86823461,139.31,139.24,3.382]
[1642478040205,5.13737441,139.32,139.24,3.382]
[1642478040402,5.13737441,139.32,139.24,42.8873]
[1642478040403,0.25,139.31,139.24,42.8873]
[1642478043324,4.12823461,139.32,139.24,42.8873]
[1642478044329,4.12823461,139.32,139.24,37.0663]
[1642478044728,6.99923461,139.32,139.24,37.0663]
[1642478045626,3.131,139.32,139.24,37.0663]
[1642478045826,0.26,139.32,139.24,37.0663]
[1642478046228,0.25,139.32,139.24,37.0663]
[1642478046830,0.25,139.32,139.24,34.1943]
[1642478047933,0.25,139.32,139.25,2.871]
[1642478048129,0.25,139.32,139.26,49.0101365]
[1642478048330,0.25,139.32,139.26,49.5201365]
[1642478053535,6.73923461,139.33,139.26,49.5201365]
[1642478053733,3.86823461,139.33,139.26,67.9201365]
[1642478053933,3.86823461,139.33,139.27,84.401]
[1642478054335,3.86823461,139.33,139.28,0.25]
[1642478054535,3.86823461,139.34,139.3,49.40435236]
[1642478054734,3.86823461,139.34,139.31,2.871]
[1642478054934,3.86823461,139.34,139.31,3.121]
[1642478055135,3.86823461,139.34,139.31,3.381]
[1642478056134,7.95734077,139.37,139.31,3.381]
[1642478056534,7.95734077,139.37,139.31,14.1443]
[1642478056935,8.21734077,139.37,139.31,14.1443]
[1642478057737,0.26,139.37,139.31,14.1443]
[1642478058136,8.21734077,139.38,139.31,14.1443]
[1642478058536,7.95734077,139.38,139.31,14.1443]
[1642478058737,3.86823461,139.38,139.31,14.1443]
[1642478058938,3.86823461,139.38,139.33,10.7608]
[1642478059239,3.86823461,139.38,139.34,0.25]
[1642478059439,3.86823461,139.38,139.35,2.87]
[1642478059640,3.86823461,139.38,139.36,36.69617097]
[1642478059941,3.86823461,139.38,139.37,0.25]
[1642478060141,28.76892442,139.42,139.37,0.25]
[1642478060342,29.02892442,139.42,139.37,0.25]
[1642478060540,28.76892442,139.42,139.37,0.25]
[1642478061441,4.0881235,139.41,139.37,0.25]
[1642478062241,4.3481235,139.41,139.37,0.25]
[1642478062841,4.3481235,139.41,139.36,47.71607097]
[1642478063842,0.26,139.41,139.36,47.71607097]
[1642478064042,0.25,139.43,139.36,47.71607097]
[1642478064241,2.869,139.42,139.36,47.71607097]
[1642478064840,7.21680649,139.42,139.36,47.71607097]
[1642478065842,2.0439062,139.38,139.36,47.71607097]
[1642478066243,4.08780649,139.41,139.37,0.25]
[1642478066444,4.08780649,139.41,139.38,10.758]
[1642478066644,4.08780649,139.41,139.38,82.058]
[1642478066843,5.53672442,139.45,139.39,0.25]
[1642478067244,5.53672442,139.45,139.39,36.8493774]
[1642478067645,5.53672442,139.45,139.39,37.1093774]
[1642478067845,4.08735437,139.45,139.39,37.1093774]
[1642478068648,4.08735437,139.45,139.39,47.8664774]
[1642478069046,6.95635437,139.45,139.39,47.8664774]
[1642478069646,7.21635437,139.45,139.39,47.8664774]
[1642478070146,4.08735437,139.45,139.39,119.1664774]
[1642478070948,29.41412442,139.46,139.39,119.1664774]
[1642478071153,0.25,139.45,139.39,119.1664774]
[1642478071549,5.53672442,139.46,139.4,2.869]
[1642478071750,5.53672442,139.46,139.41,0.25]
[1642478071949,5.53672442,139.46,139.44,71.3]
[1642478072149,5.53672442,139.48,139.45,2.868]
[1642478072354,5.53672442,139.48,139.45,0.26]
[1642478072754,5.53672442,139.48,139.45,0.51]
[1642478072956,28.89512442,139.52,139.45,0.51]
[1642478073254,35.15512442,139.52,139.43,44.91675835]
[1642478073657,35.15512442,139.52,139.43,45.17675835]
[1642478074055,0.25,139.51,139.43,44.91675835]
[1642478074354,2.868,139.5,139.43,44.91675835]
[1642478074556,4.33600398,139.51,139.43,55.93155835]
[1642478074557,7.20400398,139.51,139.43,55.93155835]
[1642478074755,7.20400398,139.51,139.44,0.25]
[1642478074955,4.33600398,139.51,139.44,3.117]
[1642478075255,4.33600398,139.51,139.44,3.377]
[1642478075588,4.08600398,139.49,139.45,10.753]
[1642478075780,4.34600398,139.49,139.46,47.76152533]
[1642478075980,4.08600398,139.49,139.46,47.76152533]
[1642478076183,4.08600398,139.49,139.47,0.25]
[1642478076579,4.08600398,139.49,139.46,47.76152533]
[1642478076780,4.08600398,139.48,139.46,10.7524]
[1642478076982,4.08600398,139.48,139.43,2.868]
[1642478077181,4.34600398,139.48,139.42,10.23]
[1642478077379,4.34600398,139.48,139.43,0.25]
[1642478077780,4.34600398,139.48,139.43,40.23353303]
[1642478078580,4.08600398,139.47,139.44,10.7538]
[1642478078782,4.34600398,139.47,139.44,10.7538]
[1642478079379,0.26,139.47,139.43,39.98353303]
[1642478079580,2.868,139.49,139.4,73.6762]
[1642478079780,3.378,139.49,139.4,27.5986]
[1642478080181,9.378,139.49,139.4,27.5986]
[1642478080581,9.378,139.49,139.41,35.5154406]
[1642478081685,20.1352,139.49,139.41,35.5154406]
[1642478081884,9.378,139.49,139.41,35.5154406]
[1642478082489,9.118,139.49,139.41,35.5154406]
[1642478083086,9.118,139.49,139.41,38.3834406]
[1642478083592,9.118,139.49,139.41,49.1396406]
[1642478083895,3.378,139.49,139.41,49.3996406]
[1642478084090,24.8125,139.5,139.41,49.3996406]
[1642478084290,25.0725,139.5,139.41,49.3996406]
[1642478085094,25.0725,139.5,139.41,50.7214398]
[1642478085394,25.0725,139.5,139.42,71.3]
[1642478085695,25.0725,139.5,139.45,10.753]
[1642478086295,4.08571943,139.49,139.45,10.753]
[1642478087198,4.34571943,139.49,139.45,10.753]
[1642478088097,4.08571943,139.48,139.45,10.753]
[1642478088498,6.06,139.47,139.45,10.753]
[1642478088898,6.06,139.47,139.44,36.83974119]
[1642478089100,3.28780003,139.47,139.43,36.4471]
[1642478089298,3.28780003,139.47,139.43,13.6222]
[1642478089499,6.15580003,139.47,139.43,2.868]
[1642478090102,3.28780003,139.47,139.44,45.42844927]
[1642478090500,0.26,139.47,139.44,45.42844927]
[1642478090701,0.25,139.48,139.43,2.868]
[1642478090902,0.25,139.48,139.41,26.4133]
[1642478091102,0.25,139.48,139.41,37.4191]
[1642478091302,0.25,139.48,139.41,37.6791]
[1642478091503,0.25,139.48,139.41,37.4291]
[1642478091902,50.23342442,139.5,139.41,37.4291]
[1642478091903,4.08630912,139.47,139.41,55.22103996]
[1642478092104,4.08630912,139.47,139.41,52.35303996]
[1642478092303,0.25,139.46,139.41,52.35303996]
[1642478093704,4.08630912,139.45,139.41,52.35303996]
[1642478093902,4.34630912,139.45,139.41,52.35303996]
[1642478095135,0.26,139.45,139.41,52.35303996]
[1642478095338,28.98242442,139.48,139.41,52.35303996]
[1642478095339,0.25,139.47,139.41,52.35303996]
[1642478095937,4.08655657,139.46,139.41,52.35303996]
[1642478096239,4.34655657,139.46,139.41,52.35303996]
[1642478097638,4.08655657,139.45,139.41,52.35303996]
[1642478097838,4.34655657,139.45,139.41,52.35303996]
[1642478098538,0.26,139.45,139.41,52.35303996]
[1642478098839,0.25,139.47,139.41,52.35303996]
[1642478100440,4.08658464,139.46,139.41,52.35303996]
[1642478100841,4.34658464,139.46,139.41,52.35303996]
[1642478102246,4.08658464,139.45,139.41,52.35303996]
[1642478102650,4.34658464,139.45,139.42,11.0051]
[1642478103648,4.34658464,139.45,139.42,10.7551]
[1642478103847,0.26,139.45,139.42,10.7551]
[1642478104248,29.24242442,139.48,139.43,0.25]
[1642478104447,29.24242442,139.48,139.42,10.7551]
[1642478105580,4.33640484,139.47,139.42,10.7551]
[1642478105751,4.59640484,139.47,139.42,10.7551]
[1642478106553,4.08640484,139.46,139.42,10.7551]
[1642478106954,4.34640484,139.46,139.42,10.7551]
[1642478107455,4.34640484,139.46,139.41,55.22153996]
[1642478107655,4.34640484,139.46,139.41,41.59723996]
[1642478108054,4.08640484,139.45,139.41,41.59723996]
[1642478108254,4.34640484,139.45,139.41,41.59723996]
[1642478108656,4.34640484,139.45,139.4,13.098]
[1642478108858,4.34640484,139.45,139.4,2.868]
[1642478109059,3.118,139.44,139.4,2.868]
[1642478109260,3.378,139.44,139.4,2.868]
[1642478110065,4.08640484,139.43,139.4,2.868]
[1642478110261,0.25,139.42,139.4,2.868]
[1642478111060,6.31,139.42,139.4,2.868]
[1642478112163,6.06,139.42,139.4,2.868]
[1642478112365,6.06,139.42,139.38,49.3234756]
[1642478112563,6.06,139.42,139.39,3.119]
[1642478112772,6.06,139.42,139.39,3.379]
[1642478112964,28.97192442,139.46,139.39,3.379]
[1642478113190,0.25,139.45,139.39,14.1367]
[1642478113791,4.33687445,139.45,139.39,13.6267]
[1642478114193,4.59687445,139.45,139.39,13.8867]
[1642478114393,4.59687445,139.45,139.39,13.6267]
[1642478114594,4.08687445,139.44,139.39,13.8867]
[1642478114793,4.34687445,139.44,139.39,13.6267]
[1642478114996,4.08687445,139.44,139.39,13.6267]
[1642478115194,4.08687445,139.44,139.4,0.25]
[1642478115394,23.4352,139.46,139.4,0.25]
[1642478115595,0.25,139.45,139.39,37.1293]
[1642478116396,4.08683314,139.44,139.39,37.1293]
[1642478118797,4.08683314,139.45,139.39,37.1293]
[1642478118999,4.33683314,139.45,139.39,37.1293]
[1642478119197,4.59683314,139.45,139.39,37.1293]
[1642478119600,4.08683314,139.44,139.39,37.1293]
[1642478120203,4.08683314,139.44,139.39,36.8693]
[1642478120403,0.25,139.43,139.39,26.1116]
[1642478120802,0.25,139.43,139.39,2.869]
[1642478121002,4.34683314,139.44,139.39,2.869]
[1642478121204,0.25,139.43,139.38,49.3234756]
[1642478122404,0.25,139.44,139.38,49.3234756]
[1642478122602,0.25,139.44,139.38,60.3419756]
[1642478123304,0.25,139.44,139.36,26.9445]
[1642478123505,2.869,139.43,139.36,24.3355]
[1642478123903,0.25,139.42,139.36,24.3355]
[1642478124305,0.25,139.42,139.37,40.66222645]
[1642478124505,4.34555101,139.43,139.37,51.42142645]
[1642478124704,0.26,139.43,139.37,51.42142645]
[1642478124907,3.129,139.45,139.35,13.099]
[1642478125105,3.129,139.45,139.35,2.869]
[1642478125106,2.869,139.42,139.35,2.869]
[1642478125308,0.26,139.42,139.35,2.869]
[1642478125506,2.869,139.41,139.35,2.869]
[1642478125905,0.25,139.4,139.35,2.869]
[1642478126107,2.869,139.39,139.35,2.869]
[1642478126306,3.129,139.39,139.35,2.869]
[1642478127306,0.26,139.39,139.34,44.06952354]
[1642478127508,0.25,139.38,139.34,44.32952354]
[1642478127708,0.51,139.4,139.34,44.32952354]
[1642478127909,0.25,139.4,139.34,44.32952354]
[1642478128610,0.25,139.4,139.34,55.09092354]
[1642478139852,0.25,139.41,139.34,55.09092354]
[1642478140652,0.25,139.41,139.35,0.25]
[1642478141655,24.1588,139.42,139.35,11.0109]
[1642478141854,0.26,139.42,139.35,11.2709]
[1642478142054,5.53672442,139.44,139.36,23.3458]
[1642478142256,5.53672442,139.44,139.37,0.25]
[1642478142455,5.53672442,139.44,139.37,3.119]
[1642478142655,46.374,139.45,139.37,3.119]
[1642478142855,46.374,139.45,139.37,14.138]
[1642478143256,46.634,139.45,139.37,14.138]
[1642478143662,0.25,139.44,139.37,14.138]
[1642478143857,4.33515595,139.44,139.37,14.138]
[1642478144260,4.59515595,139.44,139.37,14.138]
[1642478144662,4.59515595,139.44,139.37,3.379]
[1642478145057,0.51,139.44,139.37,3.379]
[1642478145258,49.503,139.45,139.37,3.379]
[1642478145460,46.634,139.45,139.37,3.379]
[1642478145961,4.08520048,139.44,139.37,3.379]
[1642478146360,4.34520048,139.44,139.37,3.379]
[1642478146566,4.34520048,139.44,139.37,15.4443876]
[1642478146760,4.34520048,139.44,139.37,14.1378]
[1642478147661,0.26,139.44,139.37,14.1378]
[1642478147862,46.634,139.45,139.37,14.1378]
[1642478148060,0.25,139.44,139.37,13.6278]
[1642478148263,2.869,139.43,139.37,10.7588]
[1642478148660,0.25,139.42,139.36,23.3458]
[1642478149162,3.129,139.43,139.37,0.25]
[1642478149360,0.26,139.43,139.37,0.25]
[1642478149859,3.129,139.44,139.37,11.0092]
[1642478150060,0.26,139.44,139.37,11.0092]
[1642478150261,0.25,139.44,139.37,11.2692]
[1642478150663,0.25,139.44,139.37,11.0192]
[1642478150966,4.3351617,139.44,139.37,11.0192]
[1642478151163,4.3351617,139.44,139.38,0.25]
[1642478151363,4.5951617,139.44,139.38,0.25]
[1642478151962,4.5951617,139.44,139.38,11.0085]
[1642478152162,4.5951617,139.44,139.39,36.29218969]
[1642478152362,4.5951617,139.44,139.39,36.55218969]
[1642478152965,2.869,139.43,139.39,36.55218969]
[1642478153966,2.869,139.43,139.39,47.30988969]
[1642478154167,4.5951617,139.44,139.39,47.30988969]
[1642478155069,4.5951617,139.44,139.39,47.04988969]
[1642478155769,7.4641617,139.44,139.39,47.04988969]
[1642478156268,3.379,139.44,139.39,47.04988969]
[1642478156871,0.51,139.44,139.39,47.04988969]
[1642478157269,0.25,139.44,139.39,47.04988969]
[1642478161398,50.4591617,139.45,139.39,47.04988969]
[1642478161600,4.0851617,139.45,139.4,0.25]
[1642478161797,4.0851617,139.45,139.41,13.6233]
[1642478162198,4.0851617,139.45,139.42,0.25]
[1642478162400,4.0851617,139.45,139.43,2.868]
[1642478162601,4.0851617,139.45,139.44,35.55894527]
[1642478162800,4.0851617,139.48,139.44,35.80894527]
[1642478164100,4.0851617,139.49,139.44,35.80894527]
[1642478164301,4.3451617,139.49,139.44,35.80894527]
[1642478164502,4.3451617,139.49,139.44,46.56264527]
[1642478165503,4.3451617,139.49,139.44,46.31264527]
[1642478172711,4.0851617,139.49,139.44,46.31264527]
[1642478172913,4.0851617,139.49,139.45,11.0029]
[1642478173514,27.8578617,139.5,139.45,11.0029]
[1642478174112,28.1178617,139.5,139.45,10.7529]
[1642478174314,0.25,139.49,139.45,10.7529]
[1642478174813,0.25,139.49,139.42,2.868]
[1642478175013,2.868,139.48,139.42,2.868]
[1642478175416,0.25,139.47,139.42,2.868]
[1642478175818,0.25,139.47,139.4,43.94380858]
[1642478175819,2.868,139.46,139.4,43.94380858]
[1642478176217,3.128,139.46,139.4,54.70020858]
[1642478176718,3.128,139.46,139.41,0.25]
[1642478176917,4.3451617,139.46,139.41,0.25]
[1642478177619,0.26,139.46,139.41,11.0056]
[1642478177818,0.25,139.47,139.41,11.0056]
[1642478178017,3.118,139.47,139.41,11.0056]
[1642478178218,3.118,139.47,139.41,11.2656]
[1642478179419,0.25,139.47,139.41,11.2656]
[1642478180320,0.25,139.47,139.41,33.9108]
[1642478183626,2.868,139.46,139.39,0.008]
[1642478183827,1.78905272,139.41,139.28,9.87272478]
[1642478184027,13.1,139.4,139.28,6.13691296]
[1642478184226,33.79096563,139.4,139.28,6.13691296]
[1642478184452,71.3,139.39,139.28,6.13691296]
[1642478184652,71.3,139.39,139.27,49.56472749]
[1642478184653,71.3,139.37,139.27,49.56472749]
[1642478184852,10.7681,139.35,139.24,54.71461296]
[1642478185052,2.871,139.34,139.24,6.13691296]
[1642478185252,3.121,139.34,139.24,6.13691296]
[1642478185453,3.381,139.34,139.24,6.13691296]
[1642478185654,3.381,139.34,139.21,10.23]
[1642478185853,38.7035,139.34,139.21,10.23]
[1642478186053,38.7035,139.34,139.22,43.74163546]
[1642478186756,1.99738715,139.33,139.23,0.25]
[1642478186954,2.871,139.32,139.23,2.29183579]
[1642478187154,3.121,139.32,139.23,2.29183579]
[1642478187355,1.99738715,139.33,139.23,2.55183579]
[1642478187754,2.25738715,139.33,139.23,2.55183579]
[1642478187956,1.99738715,139.33,139.23,2.55183579]
[1642478188255,1.99738715,139.33,139.23,79.85183579]
[1642478188655,1.99738715,139.33,139.23,2.29183579]
[1642478188857,6.0,139.34,139.26,2.04183579]
[1642478189056,0.25,139.32,139.27,40.21254831]
[1642478189258,3.381,139.33,139.27,40.21254831]
[1642478189455,0.51,139.33,139.27,40.21254831]
[1642478189655,2.871,139.32,139.27,40.21254831]
[1642478189855,0.26,139.32,139.27,40.21254831]
[1642478190456,3.381,139.33,139.27,40.21254831]
[1642478190658,9.381,139.33,139.25,2.04183579]
[1642478190859,9.381,139.33,139.25,0.26]
[1642478191059,20.1505,139.33,139.24,2.30183579]
[1642478191859,22.14788715,139.33,139.23,2.04183579]
[1642478192059,93.44788715,139.33,139.23,2.04183579]
[1642478192258,10.23,139.32,139.23,2.04183579]
[1642478192460,10.7717,139.3,139.23,2.04183579]
[1642478192862,0.25,139.29,139.23,41.91196362]
[1642478193062,0.25,139.29,139.23,39.87012783]
[1642478194366,3.122,139.29,139.23,39.87012783]
[1642478194766,3.382,139.29,139.23,39.87012783]
[1642478194965,3.382,139.29,139.22,2.04183579]
[1642478195171,0.51,139.29,139.22,2.30183579]
[1642478195370,11.0225,139.29,139.22,2.04183579]
[1642478195571,16.3365,139.29,139.22,2.04183579]
[1642478195871,16.5965,139.29,139.22,2.04183579]
[1642478196267,2.872,139.28,139.22,2.04183579]
[1642478196467,10.7746,139.27,139.22,2.04183579]
[1642478196667,11.0246,139.27,139.22,2.04183579]
[1642478196871,11.2846,139.27,139.22,2.04183579]
[1642478197368,17.2846,139.27,139.21,2.04183579]
[1642478197567,2.872,139.26,139.21,2.04183579]
[1642478197769,0.25,139.25,139.21,2.04183579]
[1642478198770,0.25,139.25,139.21,0.26]
[1642478199376,0.25,139.27,139.21,0.26]
[1642478199575,0.25,139.27,139.2,2.30183579]
[1642478199775,0.25,139.27,139.21,0.25]
[1642478199972,0.51,139.28,139.21,2.04183579]
[1642478200174,0.25,139.28,139.21,2.04183579]
[1642478200372,0.25,139.28,139.21,2.30183579]
[1642478201876,33.2599,139.29,139.21,2.30183579]
[1642478202074,8.872,139.29,139.22,0.25]
[1642478202273,1.99738715,139.31,139.23,38.49491725]
[1642478202776,1.99738715,139.31,139.24,0.25]
[1642478203374,0.25,139.3,139.24,2.29183579]
[1642478203572,4.86938715,139.32,139.24,13.05933579]
[1642478203774,4.86938715,139.32,139.24,13.31933579]
[1642478204277,2.872,139.32,139.24,13.31933579]
[1642478204676,1.99738715,139.33,139.24,19.31933579]
[1642478205178,1.99738715,139.33,139.25,10.23]
[1642478205376,1.99738715,139.34,139.27,10.7643]
[1642478205575,1.99738715,139.34,139.28,41.27328789]
[1642478205776,1.99738715,139.34,139.28,41.78328789]
[1642478205975,7.99738715,139.34,139.28,41.78328789]
[1642478206177,1.99738715,139.34,139.28,41.78328789]
[1642478206477,6.0,139.34,139.28,41.78328789]
[1642478206679,1.99738715,139.36,139.28,41.78328789]
[1642478207079,7.99738715,139.36,139.28,41.78328789]
[1642478207278,0.25,139.35,139.28,41.78328789]
[1642478207681,0.25,139.35,139.29,10.7635]
[1642478207881,0.25,139.35,139.3,0.25]
[1642478209183,9.131,139.36,139.3,0.25]
[1642478209783,3.131,139.36,139.3,0.25]
[1642478211213,0.26,139.36,139.3,0.25]
[1642478211419,0.25,139.36,139.3,0.25]
[1642478213111,0.25,139.36,139.3,11.0133]
[1642478213312,2.25738715,139.37,139.3,11.2733]
[1642478215114,1.99738715,139.37,139.3,11.0133]
[1642478215319,2.25738715,139.37,139.3,11.0133]
[1642478215516,2.25738715,139.37,139.3,10.7633]
[1642478215716,1.99738715,139.37,139.3,10.7633]
[1642478215915,0.26,139.37,139.3,10.7633]
[1642478216115,2.87,139.36,139.3,10.7633]
[1642478216316,0.26,139.36,139.3,11.0233]
[1642478216920,5.12738715,139.38,139.31,0.25]
[1642478218217,5.12738715,139.38,139.3,10.7633]
[1642478218419,0.25,139.37,139.31,0.25]
[1642478220718,2.87,139.36,139.3,2.30183579]
[1642478220925,3.12,139.37,139.31,0.25]
[1642478221119,0.26,139.36,139.3,2.30183579]
[1642478221524,0.26,139.36,139.31,0.25]
[1642478221724,3.13,139.37,139.3,0.26]
[1642478221921,3.13,139.37,139.3,10.7632]
[1642478222322,3.13,139.37,139.3,13.06503579]
[1642478223022,0.25,139.36,139.3,13.06503579]
[1642478223226,3.12,139.36,139.3,13.06503579]
[1642478223623,0.51,139.36,139.3,13.06503579]
[1642478224222,0.25,139.36,139.3,13.06503579]
[1642478224422,0.25,139.36,139.3,11.0232]
[1642478225124,3.13,139.37,139.31,0.25]
[1642478226725,0.26,139.37,139.31,0.25]
[1642478227225,0.25,139.37,139.31,0.25]
[1642478233828,3.12,139.37,139.31,0.25]
[1642478234032,3.38,139.37,139.31,0.25]
[1642478239238,2.87,139.37,139.31,0.25]
[1642478239437,1.99738715,139.38,139.31,17.3894]
[1642478239937,1.99738715,139.38,139.33,36.25392353]
[1642478240339,1.99738715,139.38,139.34,0.25]
[1642478240536,1.99738715,139.38,139.34,11.01]
[1642478240940,1.99738715,139.38,139.34,11.27]
[1642478241144,4.86738715,139.41,139.34,11.27]
[1642478241340,5.12738715,139.41,139.34,11.27]
[1642478242843,4.86738715,139.41,139.34,11.27]
[1642478243046,1.99738715,139.41,139.34,11.27]
[1642478243247,1.99738715,139.41,139.34,52.2868]
[1642478244049,1.99738715,139.44,139.36,2.04183579]
[1642478244247,1.99738715,139.44,139.37,10.7581]
[1642478244466,2.869,139.43,139.36,2.30183579]
[1642478244865,3.129,139.43,139.36,2.30183579]
[1642478245266,0.25,139.42,139.36,2.30183579]
[1642478245467,2.869,139.41,139.36,0.26]
[1642478245766,3.129,139.41,139.35,10.7591]
[1642478246168,3.129,139.41,139.35,11.0191]
[1642478246766,2.869,139.41,139.36,0.25]
[1642478246965,1.99738715,139.42,139.36,10.7587]
[1642478247165,2.25738715,139.42,139.36,10.7587]
[1642478247367,2.25738715,139.42,139.36,11.0187]
[1642478248267,2.25738715,139.42,139.37,0.25]
[1642478248468,2.25738715,139.42,139.36,11.0187]
[1642478248772,0.25,139.41,139.36,10.7587]
[1642478248967,3.119,139.41,139.36,10.7587]
[1642478250273,3.119,139.41,139.36,11.0187]
[1642478250470,2.24738715,139.41,139.36,11.0187]
[1642478250671,1.99738715,139.41,139.37,0.25]
[1642478250871,1.99738715,139.41,139.36,11.0187]
[1642478251276,1.99738715,139.42,139.37,0.25]
[1642478251671,2.25738715,139.42,139.36,11.0187]
[1642478252680,2.25738715,139.42,139.36,10.7587]
[1642478252881,0.25,139.41,139.36,10.7587]
[1642478254180,2.869,139.41,139.36,10.7587]
[1642478255618,2.25738715,139.42,139.36,10.7587]
[1642478256588,2.25738715,139.42,139.36,11.0187]
[1642478256589,1.99738715,139.42,139.36,11.0187]
[1642478257390,1.99738715,139.42,139.37,0.25]
[1642478257591,1.99738715,139.42,139.36,11.0187]
[1642478257791,0.25,139.41,139.34,35.5467]
[1642478257990,0.25,139.41,139.35,0.25]
[1642478258389,2.25738715,139.42,139.35,0.25]
[1642478258589,0.25,139.41,139.35,0.25]
[1642478258991,2.24738715,139.41,139.35,0.25]
[1642478259688,2.24738715,139.41,139.35,11.0096]
[1642478259890,2.24738715,139.41,139.35,11.2696]
[1642478260489,1.99738715,139.41,139.35,11.2696]
[1642478261992,2.25738715,139.42,139.35,11.2696]
[1642478262193,2.24738715,139.42,139.35,11.2696]
[1642478262393,2.50738715,139.42,139.35,11.2696]
[1642478262592,2.50738715,139.42,139.35,11.0196]
[1642478262792,2.50738715,139.42,139.36,0.25]
[1642478263423,2.50738715,139.42,139.35,11.0196]
[1642478263823,2.50738715,139.42,139.36,0.25]
[1642478264824,2.50738715,139.42,139.36,11.0091]